[Event "Titled Tuesday Blitz December 13 Early 2022"]
[White "Santos Flores, Alberto"]
[Black "Jobava, Baadur"]
[WhiteFideId "3601234"]
[BlackFideId "13601520"]
[WhiteElo "2235"]
[BlackElo "2582"]
[Result "0-1"]
[Round "01"]
[TimeControl "180+1"]
[Date "2022.12.13"]
[WhiteClock "0:00:26"]
[BlackClock "0:01:35"]

1. d4 {[%clk 0:02:58]}  Nf6 {[%clk 0:02:55]} 2. Nf3 {[%clk 0:02:56]}  e6 {[%clk 0:02:55]} 3. c4 {[%clk 0:02:55]}  Bb4+ {[%clk 0:02:55]} 4. Bd2 {[%clk 0:02:54]}  Bxd2+ {[%clk 0:02:55]} 5. Nbxd2 {[%clk 0:02:52]}  O-O {[%clk 0:02:51]} 6. g3 {[%clk 0:02:50]}  b6 {[%clk 0:02:51]} 7. Bg2 {[%clk 0:02:50]}  Bb7 {[%clk 0:02:51]} 8. Qc2 {[%clk 0:02:44]}  c5 {[%clk 0:02:51]} 9. O-O {[%clk 0:02:31]}  Nc6 {[%clk 0:02:45]} 10. dxc5 {[%clk 0:02:00]}  bxc5 {[%clk 0:02:45]} 11. Rfd1 {[%clk 0:01:58]}  Qe7 {[%clk 0:02:45]} 12. e3 {[%clk 0:01:43]}  Rab8 {[%clk 0:02:44]} 13. Ng5 {[%clk 0:01:36]}  Nb4 {[%clk 0:02:36]} 14. Qb1 {[%clk 0:01:31]}  Bxg2 {[%clk 0:02:36]} 15. Kxg2 {[%clk 0:01:30]}  d5 {[%clk 0:02:34]} 16. cxd5 {[%clk 0:01:26]}  exd5 {[%clk 0:02:35]} 17. Nb3 {[%clk 0:01:16]}  h6 {[%clk 0:02:32]} 18. Nf3 {[%clk 0:01:15]}  c4 {[%clk 0:02:18]} 19. Nbd4 {[%clk 0:01:10]}  Nd3 {[%clk 0:02:18]} 20. b3 {[%clk 0:01:06]}  Ne4 {[%clk 0:02:18]} 21. Rxd3 {[%clk 0:00:57]}  cxd3 {[%clk 0:02:19]} 22. Qxd3 {[%clk 0:00:56]}  Qf6 {[%clk 0:02:17]} 23. Rc1 {[%clk 0:00:54]}  Rbc8 {[%clk 0:02:17]} 24. Rxc8 {[%clk 0:00:52]}  Rxc8 {[%clk 0:02:18]} 25. Qb5 {[%clk 0:00:51]}  Rd8 {[%clk 0:01:57]} 26. Qa5 {[%clk 0:00:42]}  Qb6 {[%clk 0:01:53]} 27. Qxb6 {[%clk 0:00:37]}  axb6 {[%clk 0:01:54]} 28. a4 {[%clk 0:00:37]}  Rc8 {[%clk 0:01:49]} 29. Kf1 {[%clk 0:00:35]}  Rc1+ {[%clk 0:01:47]} 30. Ke2 {[%clk 0:00:35]}  Rb1 {[%clk 0:01:48]} 31. Ne1 {[%clk 0:00:27]}  Kf8 {[%clk 0:01:36]} 32. Ng2 {[%clk 0:00:26]}  Rb2+ {[%clk 0:01:35]} 0-1


[Site "https://www.chess.com"]

[Event "Titled Tuesday Blitz December 13 Early 2022"]
[White "Sarana, Alexey"]
[Black "Rodriguez Fontecha, Marcos"]
[WhiteFideId "24133795"]
[BlackFideId "2256576"]
[WhiteElo "2708"]
[BlackElo "2263"]
[Result "1-0"]
[Round "01"]
[TimeControl "180+1"]
[Date "2022.12.13"]
[WhiteClock "0:01:14"]
[BlackClock "0:00:06"]

1. d4 {[%clk 0:03:00]}  d5 {[%clk 0:02:45]} 2. c4 {[%clk 0:03:00]}  Nc6 {[%clk 0:02:45]} 3. cxd5 {[%clk 0:02:55]}  Qxd5 {[%clk 0:02:46]} 4. e3 {[%clk 0:02:55]}  e5 {[%clk 0:02:46]} 5. Nc3 {[%clk 0:02:56]}  Bb4 {[%clk 0:02:46]} 6. Bd2 {[%clk 0:02:57]}  Bxc3 {[%clk 0:02:47]} 7. bxc3 {[%clk 0:02:58]}  Nf6 {[%clk 0:02:47]} 8. Qb3 {[%clk 0:02:55]}  O-O {[%clk 0:02:41]} 9. Nf3 {[%clk 0:02:49]}  exd4 {[%clk 0:02:37]} 10. Qxd5 {[%clk 0:02:45]}  Nxd5 {[%clk 0:02:37]} 11. cxd4 {[%clk 0:02:45]}  Re8 {[%clk 0:02:33]} 12. Bc4 {[%clk 0:02:42]}  Nb6 {[%clk 0:02:25]} 13. Bb3 {[%clk 0:02:37]}  a5 {[%clk 0:02:23]} 14. a4 {[%clk 0:02:24]}  Be6 {[%clk 0:02:22]} 15. Bxe6 {[%clk 0:02:20]}  Rxe6 {[%clk 0:02:21]} 16. Ke2 {[%clk 0:02:19]}  Nb4 {[%clk 0:02:00]} 17. Rhc1 {[%clk 0:02:12]}  c6 {[%clk 0:01:57]} 18. Ne5 {[%clk 0:02:08]}  N6d5 {[%clk 0:01:41]} 19. Rc5 {[%clk 0:02:00]}  f6 {[%clk 0:01:18]} 20. Nd3 {[%clk 0:01:59]}  Kf7 {[%clk 0:01:02]} 21. g3 {[%clk 0:01:53]}  Nxd3 {[%clk 0:00:52]} 22. Kxd3 {[%clk 0:01:53]}  b6 {[%clk 0:00:52]} 23. Rc4 {[%clk 0:01:51]}  b5 {[%clk 0:00:53]} 24. Rc5 {[%clk 0:01:51]}  b4 {[%clk 0:00:46]} 25. Rac1 {[%clk 0:01:40]}  Nb6 {[%clk 0:00:43]} 26. Rxc6 {[%clk 0:01:24]}  Rxc6 {[%clk 0:00:44]} 27. Rxc6 {[%clk 0:01:24]}  Nxa4 {[%clk 0:00:45]} 28. Kc2 {[%clk 0:01:24]}  Ke7 {[%clk 0:00:29]} 29. Kb3 {[%clk 0:01:20]}  Kd7 {[%clk 0:00:27]} 30. d5 {[%clk 0:01:21]}  Nc3 {[%clk 0:00:23]} 31. Bxc3 {[%clk 0:01:21]}  bxc3 {[%clk 0:00:22]} 32. Rxc3 {[%clk 0:01:20]}  a4+ {[%clk 0:00:22]} 33. Ka3 {[%clk 0:01:20]}  Ra5 {[%clk 0:00:20]} 34. e4 {[%clk 0:01:20]}  f5 {[%clk 0:00:20]} 35. f3 {[%clk 0:01:20]}  fxe4 {[%clk 0:00:20]} 36. fxe4 {[%clk 0:01:21]}  Kd6 {[%clk 0:00:20]} 37. Rc6+ {[%clk 0:01:21]}  Kd7 {[%clk 0:00:16]} 38. Rb6 {[%clk 0:01:22]}  Kc7 {[%clk 0:00:12]} 39. Rb4 {[%clk 0:01:21]}  Rc5 {[%clk 0:00:08]} 40. Rxa4 {[%clk 0:01:21]}  Kd6 {[%clk 0:00:07]} 41. Ra6+ {[%clk 0:01:20]}  Ke5 {[%clk 0:00:08]} 42. Re6+ {[%clk 0:01:21]}  Kd4 {[%clk 0:00:08]} 43. d6 {[%clk 0:01:19]}  Rc8 {[%clk 0:00:06]} 44. d7 {[%clk 0:01:18]}  Rd8 {[%clk 0:00:06]} 45. Re7 {[%clk 0:01:16]}  g5 {[%clk 0:00:06]} 46. e5 {[%clk 0:01:15]}  Kd5 {[%clk 0:00:06]} 47. e6 {[%clk 0:01:14]} 1-0


[Site "https://www.chess.com"]

[Event "Titled Tuesday Blitz December 13 Early 2022"]
[White "Sonnenschein, Philipp"]
[Black "Yeremyan, Alen"]
[WhiteFideId "16250877"]
[BlackFideId "13308998"]
[WhiteElo "2224"]
[BlackElo "2159"]
[Result "0-1"]
[Round "01"]
[TimeControl "180+1"]
[Date "2022.12.14"]
[WhiteClock "0:00:44"]
[BlackClock "0:00:25"]

1. e4 {[%clk 0:02:58]}  c5 {[%clk 0:02:59]} 2. Nf3 {[%clk 0:02:58]}  Nc6 {[%clk 0:03:00]} 3. Bb5 {[%clk 0:02:57]}  g6 {[%clk 0:02:58]} 4. Bxc6 {[%clk 0:02:57]}  dxc6 {[%clk 0:02:57]} 5. d3 {[%clk 0:02:57]}  Bg7 {[%clk 0:02:56]} 6. h3 {[%clk 0:02:57]}  b6 {[%clk 0:02:53]} 7. a4 {[%clk 0:02:57]}  a5 {[%clk 0:02:53]} 8. Na3 {[%clk 0:02:56]}  h6 {[%clk 0:02:53]} 9. O-O {[%clk 0:02:55]}  e5 {[%clk 0:02:52]} 10. Nc4 {[%clk 0:02:53]}  Qc7 {[%clk 0:02:52]} 11. Be3 {[%clk 0:02:52]}  Be6 {[%clk 0:02:51]} 12. Nfd2 {[%clk 0:02:52]}  Ne7 {[%clk 0:02:50]} 13. f4 {[%clk 0:02:50]}  Bxc4 {[%clk 0:02:39]} 14. Nxc4 {[%clk 0:02:50]}  O-O {[%clk 0:02:40]} 15. fxe5 {[%clk 0:02:42]}  g5 {[%clk 0:02:38]} 16. Qh5 {[%clk 0:02:31]}  Ng6 {[%clk 0:02:38]} 17. e6 {[%clk 0:02:26]}  Nh8 {[%clk 0:02:14]} 18. h4 {[%clk 0:02:07]}  fxe6 {[%clk 0:01:40]} 19. hxg5 {[%clk 0:02:02]}  hxg5 {[%clk 0:01:41]} 20. Bxg5 {[%clk 0:01:56]}  Qg3 {[%clk 0:01:25]} 21. Bh6 {[%clk 0:01:34]}  Bd4+ {[%clk 0:00:56]} 22. Kh1 {[%clk 0:01:33]}  Rf7 {[%clk 0:00:56]} 23. Rxf7 {[%clk 0:01:18]}  Nxf7 {[%clk 0:00:54]} 24. Rf1 {[%clk 0:01:18]}  Ra7 {[%clk 0:00:50]} 25. Rf3 {[%clk 0:01:05]}  Qe1+ {[%clk 0:00:36]} 26. Kh2 {[%clk 0:01:05]}  Nxh6 {[%clk 0:00:34]} 27. Rg3+ {[%clk 0:00:58]}  Rg7 {[%clk 0:00:29]} 28. Rxg7+ {[%clk 0:00:46]}  Bxg7 {[%clk 0:00:26]} 29. Nd6 {[%clk 0:00:44]}  Be5+ {[%clk 0:00:25]} 0-1


[Site "https://www.chess.com"]

[Event "Titled Tuesday Blitz December 13 Early 2022"]
[White "Szpar, Milosz"]
[Black "Polanco Nunez, Yoel Estarling"]
[WhiteFideId "1184989"]
[BlackFideId "6401783"]
[WhiteElo "2455"]
[BlackElo "2132"]
[Result "1-0"]
[Round "01"]
[TimeControl "180+1"]
[Date "2022.12.14"]
[WhiteClock "0:00:06"]
[BlackClock "0:00:14"]

1. e4 {[%clk 0:02:45]}  c5 {[%clk 0:02:59]} 2. c3 {[%clk 0:02:26]}  d5 {[%clk 0:02:57]} 3. exd5 {[%clk 0:01:58]}  Qxd5 {[%clk 0:02:58]} 4. d4 {[%clk 0:01:53]}  e6 {[%clk 0:02:57]} 5. Nf3 {[%clk 0:01:43]}  Nf6 {[%clk 0:02:57]} 6. Bd3 {[%clk 0:01:42]}  Qd8 {[%clk 0:02:56]} 7. O-O {[%clk 0:01:42]}  Nc6 {[%clk 0:02:56]} 8. dxc5 {[%clk 0:01:41]}  Bxc5 {[%clk 0:02:56]} 9. Qe2 {[%clk 0:01:41]}  O-O {[%clk 0:02:56]} 10. b4 {[%clk 0:01:40]}  Bd6 {[%clk 0:02:52]} 11. a3 {[%clk 0:01:39]}  h6 {[%clk 0:02:48]} 12. c4 {[%clk 0:01:35]}  e5 {[%clk 0:02:30]} 13. Nbd2 {[%clk 0:01:26]}  Bg4 {[%clk 0:02:27]} 14. Bb2 {[%clk 0:01:26]}  Re8 {[%clk 0:02:25]} 15. Ne4 {[%clk 0:01:25]}  Nd4 {[%clk 0:02:21]} 16. Bxd4 {[%clk 0:01:11]}  exd4 {[%clk 0:02:22]} 17. Rfe1 {[%clk 0:01:09]}  Nd7 {[%clk 0:02:07]} 18. h3 {[%clk 0:01:04]}  Bh5 {[%clk 0:02:03]} 19. g4 {[%clk 0:00:58]}  Bg6 {[%clk 0:02:01]} 20. Qc2 {[%clk 0:00:52]}  Ne5 {[%clk 0:01:51]} 21. Nxe5 {[%clk 0:00:50]}  Bxe5 {[%clk 0:01:50]} 22. Re2 {[%clk 0:00:48]}  Qh4 {[%clk 0:01:49]} 23. Kg2 {[%clk 0:00:45]}  h5 {[%clk 0:01:44]} 24. Ng3 {[%clk 0:00:32]}  hxg4 {[%clk 0:01:34]} 25. hxg4 {[%clk 0:00:28]}  Qxg4 {[%clk 0:01:34]} 26. Rae1 {[%clk 0:00:24]}  Bxd3 {[%clk 0:01:11]} 27. Qxd3 {[%clk 0:00:25]}  f6 {[%clk 0:01:11]} 28. Qf5 {[%clk 0:00:15]}  Qxf5 {[%clk 0:01:08]} 29. Nxf5 {[%clk 0:00:15]}  Rad8 {[%clk 0:01:08]} 30. Rd1 {[%clk 0:00:10]}  g6 {[%clk 0:01:04]} 31. Nh6+ {[%clk 0:00:10]}  Kg7 {[%clk 0:01:00]} 32. Ng4 {[%clk 0:00:10]}  d3 {[%clk 0:00:57]} 33. Re3 {[%clk 0:00:10]}  d2 {[%clk 0:00:53]} 34. Kf3 {[%clk 0:00:07]}  a5 {[%clk 0:00:43]} 35. Ke2 {[%clk 0:00:06]}  axb4 {[%clk 0:00:43]} 36. axb4 {[%clk 0:00:07]}  Bf4 {[%clk 0:00:41]} 37. Rxe8 {[%clk 0:00:05]}  Rxe8+ {[%clk 0:00:41]} 38. Ne3 {[%clk 0:00:06]}  f5 {[%clk 0:00:34]} 39. Rxd2 {[%clk 0:00:05]}  Re4 {[%clk 0:00:34]} 40. Rd7+ {[%clk 0:00:05]}  Kf6 {[%clk 0:00:34]} 41. Kd3 {[%clk 0:00:05]}  Bxe3 {[%clk 0:00:31]} 42. fxe3 {[%clk 0:00:06]}  g5 {[%clk 0:00:31]} 43. Rxb7 {[%clk 0:00:06]}  g4 {[%clk 0:00:31]} 44. Rb8 {[%clk 0:00:05]}  Kf7 {[%clk 0:00:29]} 45. Rb5 {[%clk 0:00:05]}  Kf6 {[%clk 0:00:29]} 46. Rb6+ {[%clk 0:00:05]}  Kf7 {[%clk 0:00:28]} 47. Rb7+ {[%clk 0:00:05]}  Kf6 {[%clk 0:00:28]} 48. Ra7 {[%clk 0:00:05]}  g3 {[%clk 0:00:26]} 49. Ra1 {[%clk 0:00:05]}  g2 {[%clk 0:00:25]} 50. Rg1 {[%clk 0:00:05]}  Rg4 {[%clk 0:00:25]} 51. b5 {[%clk 0:00:05]}  Ke5 {[%clk 0:00:26]} 52. b6 {[%clk 0:00:05]}  Kd6 {[%clk 0:00:22]} 53. c5+ {[%clk 0:00:01]}  Kxc5 {[%clk 0:00:20]} 54. b7 {[%clk 0:00:02]}  Rg8 {[%clk 0:00:20]} 55. Rxg2 {[%clk 0:00:02]}  Rd8+ {[%clk 0:00:18]} 56. Ke2 {[%clk 0:00:02]}  Kc6 {[%clk 0:00:18]} 57. Rg7 {[%clk 0:00:02]}  Rb8 {[%clk 0:00:17]} 58. Kf3 {[%clk 0:00:03]}  Rxb7 {[%clk 0:00:17]} 59. Rxb7 {[%clk 0:00:04]}  Kxb7 {[%clk 0:00:18]} 60. Kf4 {[%clk 0:00:05]}  Kc6 {[%clk 0:00:18]} 61. Kxf5 {[%clk 0:00:05]}  Kd6 {[%clk 0:00:18]} 62. e4 {[%clk 0:00:05]}  Ke7 {[%clk 0:00:16]} 63. Ke5 {[%clk 0:00:05]}  Kf7 {[%clk 0:00:16]} 64. Kd6 {[%clk 0:00:05]}  Ke8 {[%clk 0:00:14]} 65. Ke6 {[%clk 0:00:05]}  Kd8 {[%clk 0:00:14]} 66. Kf7 {[%clk 0:00:06]}  Kd7 {[%clk 0:00:14]} 67. e5 {[%clk 0:00:06]} 1-0


[Site "https://www.chess.com"]

[Event "Titled Tuesday Blitz December 13 Early 2022"]
[White "Tan, Zhongyi"]
[Black "Mihailidis, Anastasios"]
[WhiteFideId "8603642"]
[BlackFideId "4205588"]
[WhiteElo "2510"]
[BlackElo "2312"]
[Result "1-0"]
[Round "01"]
[TimeControl "180+1"]
[Date "2022.12.14"]
[WhiteClock "0:00:40"]
[BlackClock "0:00:03"]

1. e4 {[%clk 0:02:52]}  c5 {[%clk 0:03:00]} 2. Nf3 {[%clk 0:02:51]}  d6 {[%clk 0:03:01]} 3. d4 {[%clk 0:02:51]}  cxd4 {[%clk 0:03:01]} 4. Nxd4 {[%clk 0:02:51]}  Nf6 {[%clk 0:03:02]} 5. Nc3 {[%clk 0:02:52]}  g6 {[%clk 0:03:02]} 6. f3 {[%clk 0:02:49]}  Bg7 {[%clk 0:03:02]} 7. Be3 {[%clk 0:02:49]}  O-O {[%clk 0:03:02]} 8. Qd2 {[%clk 0:02:50]}  Nc6 {[%clk 0:03:02]} 9. O-O-O {[%clk 0:02:50]}  d5 {[%clk 0:03:02]} 10. exd5 {[%clk 0:02:49]}  Nxd5 {[%clk 0:03:02]} 11. Nxc6 {[%clk 0:02:50]}  bxc6 {[%clk 0:03:02]} 12. Bd4 {[%clk 0:02:51]}  Nxc3 {[%clk 0:03:00]} 13. Qxc3 {[%clk 0:02:49]}  Bh6+ {[%clk 0:03:00]} 14. Be3 {[%clk 0:02:46]}  Bxe3+ {[%clk 0:03:00]} 15. Qxe3 {[%clk 0:02:47]}  Qb6 {[%clk 0:03:00]} 16. Re1 {[%clk 0:02:31]}  Be6 {[%clk 0:02:57]} 17. h4 {[%clk 0:02:27]}  Rab8 {[%clk 0:02:55]} 18. b3 {[%clk 0:02:24]}  Qa5 {[%clk 0:02:34]} 19. Kb1 {[%clk 0:02:23]}  Qa3 {[%clk 0:02:34]} 20. h5 {[%clk 0:02:17]}  Bf5 {[%clk 0:02:04]} 21. Bd3 {[%clk 0:02:16]}  Bxd3 {[%clk 0:01:47]} 22. Qxd3 {[%clk 0:02:16]}  Kg7 {[%clk 0:01:43]} 23. Qc3+ {[%clk 0:02:14]}  Kg8 {[%clk 0:01:39]} 24. hxg6 {[%clk 0:01:51]}  fxg6 {[%clk 0:01:38]} 25. Qc4+ {[%clk 0:01:51]}  Kg7 {[%clk 0:01:25]} 26. Qh4 {[%clk 0:01:48]}  h5 {[%clk 0:01:10]} 27. Rxe7+ {[%clk 0:01:46]}  Kh6 {[%clk 0:01:09]} 28. g4 {[%clk 0:01:42]}  Rb5 {[%clk 0:00:59]} 29. Rg1 {[%clk 0:01:35]}  Rg5 {[%clk 0:00:38]} 30. Qe1 {[%clk 0:01:19]}  Ra5 {[%clk 0:00:25]} 31. Qe3+ {[%clk 0:01:08]}  Rg5 {[%clk 0:00:16]} 32. gxh5 {[%clk 0:01:07]}  Qxe7 {[%clk 0:00:14]} 33. Qxe7 {[%clk 0:01:04]}  Rxg1+ {[%clk 0:00:15]} 34. Kb2 {[%clk 0:01:05]}  Rxf3 {[%clk 0:00:14]} 35. hxg6 {[%clk 0:01:02]}  Rxg6 {[%clk 0:00:14]} 36. Qxa7 {[%clk 0:01:01]}  Rff6 {[%clk 0:00:14]} 37. Qe3+ {[%clk 0:01:00]}  Kg7 {[%clk 0:00:14]} 38. a4 {[%clk 0:01:01]}  Rf7 {[%clk 0:00:13]} 39. Qd4+ {[%clk 0:01:00]}  Rgf6 {[%clk 0:00:13]} 40. a5 {[%clk 0:00:59]}  Kf8 {[%clk 0:00:14]} 41. a6 {[%clk 0:00:59]}  c5 {[%clk 0:00:14]} 42. Qxc5+ {[%clk 0:00:59]}  Kg7 {[%clk 0:00:14]} 43. Qd4 {[%clk 0:00:56]}  Rf8 {[%clk 0:00:12]} 44. b4 {[%clk 0:00:54]}  Kg6 {[%clk 0:00:11]} 45. b5 {[%clk 0:00:54]}  Rf4 {[%clk 0:00:11]} 46. Qd3+ {[%clk 0:00:53]}  Kg5 {[%clk 0:00:11]} 47. a7 {[%clk 0:00:53]}  Rb4+ {[%clk 0:00:10]} 48. Kc3 {[%clk 0:00:50]}  Ra4 {[%clk 0:00:09]} 49. Qd5+ {[%clk 0:00:47]}  Kf6 {[%clk 0:00:08]} 50. Qd6+ {[%clk 0:00:46]}  Kg7 {[%clk 0:00:09]} 51. b6 {[%clk 0:00:44]}  Rc8+ {[%clk 0:00:08]} 52. Kb3 {[%clk 0:00:44]}  Rac4 {[%clk 0:00:07]} 53. Qe5+ {[%clk 0:00:40]}  Kh6 {[%clk 0:00:04]} 54. a8=Q {[%clk 0:00:41]}  Rc3+ {[%clk 0:00:03]} 55. Qxc3 {[%clk 0:00:40]}  Rxa8 {[%clk 0:00:03]} 56. Qh3+ {[%clk 0:00:39]}  Kg6 {[%clk 0:00:03]} 57. Qg2+ {[%clk 0:00:39]}  Kf6 {[%clk 0:00:03]} 58. Qxa8 {[%clk 0:00:40]} 1-0


[Site "https://www.chess.com"]

[Event "Titled Tuesday Blitz December 13 Early 2022"]
[White "Tarasova, Viktoriya"]
[Black "Wagner, Dennis"]
[WhiteFideId "4175840"]
[BlackFideId "24650684"]
[WhiteElo "2182"]
[BlackElo "2470"]
[Result "0-1"]
[Round "01"]
[TimeControl "180+1"]
[Date "2022.12.14"]
[WhiteClock "0:00:02"]
[BlackClock "0:00:05"]

1. d4 {[%clk 0:02:59]}  Nf6 {[%clk 0:03:00]} 2. c4 {[%clk 0:02:58]}  e6 {[%clk 0:03:00]} 3. Nc3 {[%clk 0:02:58]}  Bb4 {[%clk 0:02:59]} 4. Nf3 {[%clk 0:02:58]}  d5 {[%clk 0:02:57]} 5. cxd5 {[%clk 0:02:57]}  exd5 {[%clk 0:02:58]} 6. Bg5 {[%clk 0:02:57]}  h6 {[%clk 0:02:58]} 7. Bh4 {[%clk 0:02:56]}  O-O {[%clk 0:02:58]} 8. Qc2 {[%clk 0:02:55]}  c5 {[%clk 0:02:42]} 9. e3 {[%clk 0:02:55]}  c4 {[%clk 0:02:41]} 10. Be2 {[%clk 0:02:51]}  Nc6 {[%clk 0:02:34]} 11. O-O {[%clk 0:02:51]}  Be6 {[%clk 0:02:26]} 12. Ne5 {[%clk 0:02:48]}  Be7 {[%clk 0:02:09]} 13. f4 {[%clk 0:02:48]}  a6 {[%clk 0:02:01]} 14. Bf3 {[%clk 0:02:15]}  Nh7 {[%clk 0:01:45]} 15. Bf2 {[%clk 0:01:48]}  Nb4 {[%clk 0:01:20]} 16. Qe2 {[%clk 0:01:36]}  f6 {[%clk 0:01:17]} 17. Ng6 {[%clk 0:01:36]}  Re8 {[%clk 0:01:17]} 18. Bg4 {[%clk 0:01:23]}  Qd7 {[%clk 0:01:04]} 19. Bxe6+ {[%clk 0:00:42]}  Qxe6 {[%clk 0:01:05]} 20. Qf3 {[%clk 0:00:34]}  f5 {[%clk 0:00:52]} 21. Ne5 {[%clk 0:00:32]}  Rad8 {[%clk 0:00:49]} 22. a3 {[%clk 0:00:29]}  Nc6 {[%clk 0:00:43]} 23. Kh1 {[%clk 0:00:26]}  Nf6 {[%clk 0:00:42]} 24. Rg1 {[%clk 0:00:17]}  b5 {[%clk 0:00:40]} 25. h3 {[%clk 0:00:15]}  Nxe5 {[%clk 0:00:37]} 26. dxe5 {[%clk 0:00:14]}  Ne4 {[%clk 0:00:38]} 27. Nxe4 {[%clk 0:00:13]}  dxe4 {[%clk 0:00:35]} 28. Qe2 {[%clk 0:00:14]}  Rd3 {[%clk 0:00:32]} 29. g4 {[%clk 0:00:14]}  Red8 {[%clk 0:00:32]} 30. gxf5 {[%clk 0:00:14]}  Qxf5 {[%clk 0:00:33]} 31. Rg4 {[%clk 0:00:14]}  Rd2 {[%clk 0:00:33]} 32. Qf1 {[%clk 0:00:15]}  Rxb2 {[%clk 0:00:32]} 33. Qg2 {[%clk 0:00:15]}  Bf8 {[%clk 0:00:30]} 34. Rg1 {[%clk 0:00:16]}  Rd7 {[%clk 0:00:25]} 35. Rg6 {[%clk 0:00:14]}  Rxf2 {[%clk 0:00:15]} 36. Qxf2 {[%clk 0:00:13]}  Qxh3+ {[%clk 0:00:16]} 37. Qh2 {[%clk 0:00:14]}  Qxe3 {[%clk 0:00:16]} 38. e6 {[%clk 0:00:12]}  Rd2 {[%clk 0:00:13]} 39. Qh5 {[%clk 0:00:03]}  Qxf4 {[%clk 0:00:08]} 40. e7 {[%clk 0:00:02]}  Qf3+ {[%clk 0:00:02]} 41. Qxf3 {[%clk 0:00:02]}  exf3 {[%clk 0:00:03]} 42. exf8=Q+ {[%clk 0:00:01]}  Kxf8 {[%clk 0:00:04]} 43. Rxg7 {[%clk 0:00:01]}  f2 {[%clk 0:00:05]} 44. Rg8+ {[%clk 0:00:01]}  Kf7 {[%clk 0:00:05]} 45. R8g7+ {[%clk 0:00:02]}  Kf6 {[%clk 0:00:05]} 0-1


[Site "https://www.chess.com"]

[Event "Titled Tuesday Blitz December 13 Early 2022"]
[White "Topalov, Aleksandar"]
[Black "Saravana, Krishnan P."]
[WhiteFideId "925659"]
[BlackFideId "5018382"]
[WhiteElo "2151"]
[BlackElo "2190"]
[Result "0-1"]
[Round "01"]
[TimeControl "180+1"]
[Date "2022.12.14"]
[WhiteClock "0:00:06"]
[BlackClock "0:01:11"]

1. b3 {[%clk 0:02:59]}  e5 {[%clk 0:02:59]} 2. Bb2 {[%clk 0:02:59]}  Nc6 {[%clk 0:02:59]} 3. c4 {[%clk 0:02:58]}  Nf6 {[%clk 0:02:59]} 4. e3 {[%clk 0:02:57]}  g6 {[%clk 0:02:52]} 5. Nf3 {[%clk 0:02:55]}  d6 {[%clk 0:02:51]} 6. d4 {[%clk 0:02:54]}  e4 {[%clk 0:02:49]} 7. d5 {[%clk 0:02:50]}  exf3 {[%clk 0:02:42]} 8. dxc6 {[%clk 0:02:49]}  fxg2 {[%clk 0:02:35]} 9. Bxg2 {[%clk 0:02:49]}  b6 {[%clk 0:02:21]} 10. Nc3 {[%clk 0:02:47]}  Bg7 {[%clk 0:02:21]} 11. Nd5 {[%clk 0:02:43]}  O-O {[%clk 0:02:21]} 12. Qd4 {[%clk 0:02:35]}  Nh5 {[%clk 0:02:19]} 13. Qd2 {[%clk 0:02:04]}  Be6 {[%clk 0:02:15]} 14. Bf3 {[%clk 0:02:01]}  Bxd5 {[%clk 0:02:09]} 15. Bxd5 {[%clk 0:01:57]}  Nf6 {[%clk 0:02:07]} 16. Bf3 {[%clk 0:01:47]}  Qe7 {[%clk 0:02:06]} 17. O-O-O {[%clk 0:01:44]}  a5 {[%clk 0:02:05]} 18. a4 {[%clk 0:01:43]}  Rfe8 {[%clk 0:01:58]} 19. Rhg1 {[%clk 0:01:26]}  Ne4 {[%clk 0:01:52]} 20. Bxe4 {[%clk 0:01:16]}  Bxb2+ {[%clk 0:01:52]} 21. Kxb2 {[%clk 0:01:13]}  Qxe4 {[%clk 0:01:51]} 22. Qd5 {[%clk 0:01:09]}  Qh4 {[%clk 0:01:45]} 23. Qg2 {[%clk 0:00:53]}  Re5 {[%clk 0:01:41]} 24. Rd4 {[%clk 0:00:52]}  Qf6 {[%clk 0:01:40]} 25. Ka2 {[%clk 0:00:45]}  Rae8 {[%clk 0:01:39]} 26. Rf4 {[%clk 0:00:41]}  Rf5 {[%clk 0:01:37]} 27. Rxf5 {[%clk 0:00:34]}  Qxf5 {[%clk 0:01:37]} 28. Kb2 {[%clk 0:00:34]}  Kg7 {[%clk 0:01:35]} 29. Rd1 {[%clk 0:00:25]}  Qf6+ {[%clk 0:01:33]} 30. Kc2 {[%clk 0:00:22]}  Re5 {[%clk 0:01:32]} 31. Rd5 {[%clk 0:00:22]}  Rxd5 {[%clk 0:01:29]} 32. cxd5 {[%clk 0:00:21]}  Qa1 {[%clk 0:01:27]} 33. Qf3 {[%clk 0:00:15]}  Qe5 {[%clk 0:01:22]} 34. h3 {[%clk 0:00:14]}  f5 {[%clk 0:01:22]} 35. Qg2 {[%clk 0:00:11]}  Kf6 {[%clk 0:01:21]} 36. Qf3 {[%clk 0:00:10]}  Qe4+ {[%clk 0:01:18]} 37. Qxe4 {[%clk 0:00:08]}  fxe4 {[%clk 0:01:18]} 38. Kc3 {[%clk 0:00:09]}  Ke5 {[%clk 0:01:18]} 39. Kc4 {[%clk 0:00:09]}  g5 {[%clk 0:01:16]} 40. b4 {[%clk 0:00:05]}  axb4 {[%clk 0:01:12]} 41. Kxb4 {[%clk 0:00:05]}  Kxd5 {[%clk 0:01:12]} 42. Kb5 {[%clk 0:00:06]}  h5 {[%clk 0:01:11]} 0-1


[Site "https://www.chess.com"]